bitfinex-derivatives/quotes_BTCF0:USTF0_20250620
["timestamp","ask_amount","ask_price","bid_price","bid_amount"]
[1750450791431,0.26695886,103600.0,103590.0,0.6156527]
[1750450792524,0.26695886,103600.0,103590.0,0.6256527]
[1750450793923,0.26695886,103600.0,103590.0,0.2648527]
[1750450794125,0.26695886,103600.0,103590.0,0.6256527]
[1750450794326,0.62775886,103600.0,103590.0,0.2648527]
[1750450794833,0.62775886,103600.0,103590.0,0.2548527]
[1750450796239,0.62775886,103600.0,103590.0,0.2548526]
[1750450797137,1.12246263,103600.0,103590.0,0.2548526]
[1750450797338,1.12246263,103600.0,103590.0,0.0618]
[1750450797539,1.18576263,103600.0,103590.0,0.0014]
[1750450797838,1.12787464,103600.0,103590.0,0.001]
[1750450798031,1.16017464,103600.0,103590.0,0.0014]
[1750450799344,0.95110377,103600.0,103590.0,0.0014]
[1750450799534,1.16026733,103600.0,103590.0,0.0014]
[1750450800441,0.66556356,103600.0,103590.0,0.0014]
[1750450800627,0.66556356,103600.0,103590.0,0.1944527]
[1750450800833,1.16026733,103600.0,103590.0,0.0014]
[1750450801445,1.16026733,103600.0,103590.0,0.1944527]
[1750450801843,1.16026733,103600.0,103590.0,0.0014]
[1750450802842,1.06306972,103600.0,103590.0,0.0014]
[1750450803242,1.82137588,103600.0,103590.0,0.001]
[1750450803454,1.53058039,103600.0,103590.0,0.0014]
[1750450803743,1.13307423,103600.0,103590.0,0.001]
[1750450803946,1.53058039,103600.0,103590.0,0.001]
[1750450804250,0.1930526,103590.0,103580.0,0.29057129]
[1750450804446,1.01545876,103590.0,103580.0,0.24310369]
[1750450805538,1.01545876,103590.0,103580.0,0.27400369]
[1750450805741,0.65465876,103590.0,103580.0,0.27400369]
[1750450806449,1.01545876,103590.0,103580.0,0.27400369]
[1750450806647,1.01545876,103590.0,103580.0,0.19483609]
[1750450807742,1.01545876,103590.0,103580.0,0.00176539]
[1750450807945,1.09187464,103590.0,103580.0,0.00176539]
[1750450808347,1.4893808,103590.0,103580.0,0.00176539]
[1750450809241,1.09187464,103590.0,103580.0,0.19483659]
[1750450811144,0.69436848,103590.0,103580.0,0.19483659]
[1750450811342,1.09187464,103590.0,103580.0,0.19483659]
[1750450812342,1.4893808,103590.0,103580.0,0.19483659]
[1750450812551,1.64800647,103590.0,103580.0,0.19483659]
[1750450812852,1.25050031,103590.0,103580.0,0.00176539]
[1750450813241,1.25050031,103590.0,103580.0,0.19483669]
[1750450814645,0.79515537,103590.0,103580.0,0.19483669]
[1750450815047,1.19266153,103590.0,103580.0,0.19483669]
[1750450815247,1.25049663,103590.0,103580.0,0.19483669]
[1750450815449,1.19266153,103590.0,103580.0,0.19483669]
[1750450817248,1.26978876,103590.0,103580.0,0.19483669]
[1750450819148,0.8722826,103590.0,103580.0,0.19483669]
[1750450819350,1.26978876,103590.0,103580.0,0.19483669]
[1750450820861,1.66729492,103590.0,103580.0,0.00176539]
[1750450821258,1.66729492,103590.0,103580.0,0.00096539]
[1750450821559,1.66729492,103590.0,103580.0,0.00136539]
[1750450821953,1.66729492,103590.0,103580.0,0.19443659]
[1750450822155,1.89042876,103590.0,103580.0,0.19443659]
[1750450822553,1.89142876,103590.0,103580.0,0.19443659]
[1750450823061,1.89342876,103590.0,103580.0,0.19443659]
[1750450823661,1.89354876,103590.0,103580.0,0.19443659]
[1750450823854,0.34959571,103590.0,103580.0,0.23763659]
[1750450824054,0.27246848,103590.0,103580.0,0.70104275]
[1750450824254,0.13729307,103590.0,103580.0,0.66433659]
[1750450824450,0.13729307,103590.0,103580.0,1.06184275]
[1750450824659,0.13729307,103590.0,103580.0,0.66433659]
[1750450825055,0.13729307,103590.0,103580.0,1.06184275]
[1750450825456,0.13729307,103590.0,103580.0,1.83664275]
[1750450825664,0.2895341,103610.0,103600.0,0.193034]
[1750450825966,0.68704026,103610.0,103600.0,0.21084265]
[1750450826163,1.07984026,103610.0,103600.0,0.21084265]
[1750450826462,1.14384026,103610.0,103600.0,0.21084265]
[1750450827064,1.14484026,103610.0,103600.0,0.21084265]
[1750450828767,1.14484026,103610.0,103600.0,0.21084255]
[1750450829468,0.7473341,103610.0,103600.0,0.01780865]
[1750450829665,1.14484026,103610.0,103600.0,0.01780865]
[1750450830572,1.14484026,103610.0,103600.0,0.01820865]
[1750450831764,1.14484026,103610.0,103600.0,0.0004]
[1750450831961,1.87318409,103610.0,103600.0,0.0004]
[1750450832157,0.193034,103600.0,103590.0,1.0148353]
[1750450832358,0.66685497,103600.0,103590.0,0.9665722]
[1750450832564,0.66685497,103600.0,103590.0,0.9673722]
[1750450832761,0.66685497,103600.0,103590.0,0.3476122]
[1750450833359,0.26934881,103600.0,103590.0,0.3476122]
[1750450833568,0.66685497,103600.0,103590.0,0.3476122]
[1750450834571,0.66685497,103600.0,103590.0,0.1938522]
[1750450838476,0.66685497,103600.0,103590.0,0.2265522]
[1750450840376,0.26934881,103600.0,103590.0,0.2265522]
[1750450840576,0.66685497,103600.0,103590.0,0.2265522]
[1750450841768,0.66785497,103600.0,103590.0,0.2265522]
[1750450843482,0.66885497,103600.0,103590.0,0.2265522]
[1750450845472,0.66885497,103600.0,103590.0,0.1938522]
[1750450845783,0.83044008,103600.0,103590.0,0.1938526]
[1750450845983,0.72664145,103600.0,103590.0,0.1938526]
[1750450846280,0.29893529,103600.0,103590.0,0.2250526]
[1750450846469,0.29893529,103600.0,103590.0,0.2882526]
[1750450847079,0.24114881,103600.0,103590.0,0.2882526]
[1750450847487,0.24114881,103600.0,103590.0,0.68575876]
[1750450847782,0.21084881,103600.0,103590.0,1.04655876]
[1750450848175,0.21084881,103600.0,103590.0,0.6490526]
[1750450848380,0.63925497,103600.0,103590.0,0.5858526]
[1750450848584,0.67045497,103600.0,103590.0,0.5858526]
[1750450848883,0.63925497,103600.0,103590.0,0.5858526]
[1750450849083,0.24174881,103600.0,103590.0,0.6181526]
[1750450851184,0.29953529,103600.0,103590.0,0.6181526]
[1750450851486,0.01781481,103600.0,103590.0,1.01565876]
[1750450852576,0.01781481,103600.0,103590.0,1.25565876]
[1750450853581,0.01581481,103600.0,103590.0,1.26065876]
[1750450853782,0.01581481,103600.0,103590.0,1.27822141]
[1750450854581,0.01581481,103600.0,103590.0,1.47127741]
[1750450855283,0.60635497,103600.0,103590.0,0.88071525]
[1750450855488,0.60635497,103600.0,103590.0,1.41107525]
[1750450855689,0.63655497,103600.0,103590.0,1.41107525]
[1750450856286,0.63655497,103600.0,103590.0,1.41027525]
[1750450856487,0.63648792,103600.0,103590.0,1.40967525]
[1750450856685,0.63648792,103600.0,103590.0,1.40767525]
[1750450857382,0.01581481,103600.0,103590.0,1.80511436]
[1750450857586,0.01581481,103600.0,103590.0,1.80507436]
[1750450857786,0.01581481,103600.0,103590.0,1.87507436]
[1750450860189,0.05778648,103610.0,103600.0,0.1930339]
[1750450860492,0.39554768,103620.0,103610.0,0.1930153]
[1750450860683,0.37889678,103620.0,103610.0,1.3537753]
[1750450861185,0.33064598,103620.0,103610.0,1.3537753]
[1750450861384,0.33064598,103620.0,103610.0,1.3845753]
[1750450862089,0.72808509,103620.0,103610.0,1.3845753]
[1750450862285,0.75998509,103620.0,103610.0,1.3537753]
[1750450863086,0.75998509,103620.0,103610.0,1.3235753]
[1750450863496,0.76098509,103620.0,103610.0,1.3235753]
[1750450863803,0.76098509,103620.0,103610.0,0.9627753]
[1750450864302,0.76098509,103620.0,103610.0,0.1930153]
[1750450864505,0.76098509,103620.0,103610.0,0.9620153]
[1750450864804,0.76198509,103620.0,103610.0,0.9620153]
[1750450865405,0.76198509,103620.0,103610.0,0.9624153]
[1750450865804,1.12278509,103620.0,103610.0,0.9624153]
[1750450866104,1.12278509,103620.0,103610.0,0.1934153]
[1750450866299,1.5202242,103620.0,103610.0,0.0004]
[1750450866504,1.56287707,103620.0,103610.0,0.0004]
[1750450866703,0.1930152,103610.0,103600.0,1.0094908]
[1750450866898,1.10188653,103610.0,103600.0,1.0094908]
[1750450867093,0.6466152,103610.0,103600.0,1.0102908]
[1750450867297,1.04405431,103610.0,103600.0,0.2420908]
[1750450867499,1.04405431,103610.0,103600.0,0.0008]
[1750450867804,0.1930526,103590.0,103580.0,0.65135119]
[1750450868101,0.64832982,103590.0,103580.0,0.19401989]
[1750450868300,1.10092982,103590.0,103580.0,0.81089989]
[1750450868501,1.17867331,103590.0,103580.0,0.81089989]
[1750450868703,1.17867331,103590.0,103580.0,0.19441989]
[1750450868896,1.17867331,103590.0,103580.0,0.81265989]
[1750450869202,1.17867331,103590.0,103580.0,0.81365989]
[1750450869409,0.81787331,103590.0,103580.0,0.81325989]
[1750450869905,0.81787331,103590.0,103580.0,0.19641989]
[1750450870102,1.57611242,103590.0,103580.0,0.00336539]
[1750450870299,1.51827431,103590.0,103580.0,0.62000539]
[1750450870495,1.51827431,103590.0,103580.0,0.00336539]
[1750450870902,1.1208352,103590.0,103580.0,0.19643669]
[1750450872503,0.42036466,103590.0,103580.0,0.5938758]
[1750450872702,0.16641206,103590.0,103580.0,0.6247758]
[1750450872902,0.13551206,103590.0,103580.0,1.0578758]
[1750450873304,0.07774349,103590.0,103580.0,1.0578758]
[1750450873503,0.49298087,103600.0,103590.0,0.1930526]
[1750450873704,0.34820257,103600.0,103590.0,1.3228526]
[1750450873906,0.34820257,103600.0,103590.0,1.3537526]
[1750450874208,0.15516857,103600.0,103590.0,1.3537526]
[1750450874722,0.15516857,103600.0,103590.0,1.75119171]
[1750450875014,0.09106857,103600.0,103590.0,1.75119171]
[1750450875212,0.05776857,103600.0,103590.0,1.81379171]
[1750450876018,0.05776857,103600.0,103590.0,1.4163526]
[1750450876314,0.05776857,103600.0,103590.0,1.83108661]
[1750450877014,0.25080257,103600.0,103590.0,1.83108661]
[1750450877208,0.193034,103600.0,103590.0,1.83108661]
[1750450877407,0.223534,103600.0,103590.0,1.83108661]
[1750450877716,0.62097311,103600.0,103590.0,0.5711475]
[1750450877917,0.65287311,103600.0,103590.0,1.3390675]
[1750450878116,0.255434,103600.0,103590.0,1.3390675]
[1750450878409,0.223534,103600.0,103590.0,1.77000661]
[1750450878812,0.0305,103600.0,103590.0,1.77000661]
[1750450879708,0.0305,103600.0,103590.0,1.80120661]
[1750450880310,0.31559777,103610.0,103600.0,0.1930339]
[1750450880510,0.34849777,103610.0,103600.0,0.5538339]
[1750450881514,0.34849777,103610.0,103600.0,0.5548339]
[1750450881714,0.74593688,103610.0,103600.0,0.5558339]
[1750450883712,0.74593688,103610.0,103600.0,0.3628]
[1750450883912,1.10673688,103610.0,103600.0,0.002]
[1750450884519,0.70929777,103610.0,103600.0,0.0024]
[1750450884710,1.10673688,103610.0,103600.0,0.0024]
[1750450886822,1.10673688,103610.0,103600.0,0.195434]
[1750450887222,1.04896831,103610.0,103600.0,0.195434]
[1750450887416,1.04896831,103610.0,103600.0,0.0024]
[1750450888918,1.04896831,103610.0,103600.0,0.1954339]
[1750450889116,1.04896831,103610.0,103600.0,0.0024]
[1750450890014,1.15808666,103610.0,103600.0,0.0024]
[1750450890220,1.15808666,103610.0,103600.0,0.1954339]
[1750450890425,1.04896831,103610.0,103600.0,0.0024]
[1750450890724,1.15808666,103610.0,103600.0,0.0024]
[1750450890925,1.77360666,103610.0,103600.0,0.0024]
[1750450892624,1.85073389,103610.0,103600.0,0.0024]
[1750450893525,1.68776166,103610.0,103600.0,0.0024]
[1750450893727,1.61063443,103610.0,103600.0,0.0024]
[1750450894132,1.68776166,103610.0,103600.0,0.0024]
[1750450895017,0.1930526,103590.0,103580.0,0.00096539]
[1750450895222,1.70953082,103590.0,103580.0,0.00096539]
[1750450895422,1.81782146,103590.0,103580.0,0.00096539]
[1750450895722,2.5114757,103590.0,103580.0,0.00096539]
[1750450895921,2.5114757,103590.0,103580.0,0.00136539]
[1750450896121,2.5114757,103590.0,103580.0,0.00096539]
[1750450896629,2.61524364,103590.0,103580.0,0.00136539]
[1750450896831,2.67874364,103590.0,103580.0,0.00136539]
[1750450897331,2.601653,103590.0,103580.0,0.00136539]
[1750450897629,2.602653,103590.0,103580.0,0.00136539]
[1750450900032,2.602653,103590.0,103580.0,0.00136539]
[1750450901335,0.0482714,103580.0,103550.0,0.00096567]
[1750450901526,1.76734777,103560.0,103550.0,0.00096567]
[1750450901727,1.70958672,103560.0,103550.0,0.00096567]
[1750450902034,1.48298233,103560.0,103550.0,0.00136567]
[1750450902432,0.1931272,103550.0,103540.0,0.0008]
[1750450902633,0.1931645,103530.0,103520.0,0.15416595]
[1750450902831,0.95140361,103530.0,103520.0,0.18406595]
[1750450903027,0.5852645,103530.0,103520.0,0.37764915]
[1750450903229,0.2244645,103530.0,103520.0,0.22564915]
[1750450903426,0.30348262,103530.0,103520.0,0.25664915]
[1750450903633,0.30348262,103530.0,103520.0,0.00136595]
[1750450903833,0.73018262,103530.0,103520.0,0.00136595]
[1750450904128,1.74274173,103530.0,103520.0,0.00096595]
[1750450904332,0.73018262,103530.0,103520.0,0.19414905]
[1750450904525,0.66428262,103530.0,103520.0,0.19454905]
[1750450904725,0.66428262,103530.0,103520.0,0.22604905]
[1750450904932,0.66428262,103530.0,103520.0,0.23004905]
[1750450905430,0.66428262,103530.0,103520.0,0.23204905]
[1750450905631,0.66428252,103530.0,103520.0,0.23204905]
[1750450906840,0.11031812,103530.0,103520.0,0.23204905]
[1750450907045,0.30348262,103530.0,103520.0,0.23204905]
[1750450907730,0.50775723,103530.0,103520.0,0.23204905]
[1750450907938,0.70092173,103530.0,103520.0,0.23204905]
[1750450909538,1.06172173,103530.0,103520.0,0.03886595]
[1750450909840,1.06172173,103530.0,103520.0,0.00696595]
[1750450910026,1.70984173,103530.0,103520.0,0.20054905]
[1750450910228,1.31240262,103530.0,103520.0,0.20054905]
[1750450910428,1.31240262,103530.0,103520.0,0.23234905]
[1750450910429,1.70984173,103530.0,103520.0,0.23234905]
[1750450910631,0.69728262,103530.0,103520.0,0.23234905]
[1750450910831,1.09472173,103530.0,103520.0,0.23234905]
[1750450911230,1.09472173,103530.0,103520.0,0.22934905]
[1750450911430,1.09472173,103530.0,103520.0,0.22734905]
[1750450911627,1.06172173,103530.0,103520.0,0.22834905]
[1750450911832,0.07901812,103530.0,103520.0,0.62578816]
[1750450912043,1.1391025,103540.0,103530.0,0.1931645]
[1750450912240,1.1391025,103540.0,103530.0,0.2575645]
[1750450912432,0.1931645,103530.0,103520.0,0.2625883]
[1750450912633,0.62070361,103530.0,103520.0,0.2950883]
[1750450913143,0.6989554,103530.0,103520.0,0.2950883]
[1750450913740,0.30151629,103530.0,103520.0,0.2946883]
[1750450913937,0.6989554,103530.0,103520.0,0.2940883]
[1750450914348,0.6989554,103530.0,103520.0,0.2930883]
[1750450914844,0.6989554,103530.0,103520.0,0.2940883]
[1750450915034,0.6989554,103530.0,103520.0,0.2950883]
[1750450917037,1.0597554,103530.0,103520.0,0.2950883]
[1750450918843,1.0597554,103530.0,103520.0,0.2467967]
[1750450919142,1.0597554,103530.0,103520.0,0.2468106]
[1750450919645,1.0597554,103530.0,103520.0,0.0536275]
[1750450920337,1.0914554,103530.0,103520.0,0.0536275]
[1750450920538,1.0914554,103530.0,103520.0,0.0211275]
[1750450920739,1.48889451,103530.0,103520.0,0.0207275]
[1750450920938,1.48889451,103530.0,103520.0,0.00336595]
[1750450920939,2.10405451,103530.0,103520.0,0.00336595]
[1750450921141,0.1931831,103520.0,103500.0,0.25903055]
[1750450921335,0.1931831,103520.0,103490.0,0.35170533]
[1750450921336,0.1932204,103500.0,103490.0,0.35170533]
[1750450921536,0.95145951,103500.0,103490.0,0.30339573]
[1750450921843,1.04495951,103500.0,103490.0,0.27329573]
[1750450922038,0.6475204,103500.0,103490.0,0.27369573]
[1750450922235,0.0318,103500.0,103490.0,1.03193484]
[1750450922438,0.1932207,103500.0,103490.0,1.06443484]
[1750450922645,0.3699276,103510.0,103500.0,0.1932207]
[1750450922846,0.3699276,103510.0,103500.0,0.6150207]
[1750450923039,1.12816671,103510.0,103500.0,0.2542207]
[1750450923746,1.12816671,103510.0,103500.0,0.061]
[1750450924345,1.12816671,103510.0,103500.0,0.062]
[1750450925043,1.15906671,103510.0,103500.0,0.001]
[1750450925341,1.27101704,103510.0,103500.0,0.001]
[1750450925940,1.27101704,103510.0,103500.0,0.0014]
[1750450926738,1.27101704,103510.0,103500.0,0.001]
[1750450926939,1.27101704,103510.0,103500.0,0.0014]
[1750450927139,0.225002,103510.0,103500.0,0.1946207]
[1750450927337,0.225002,103510.0,103500.0,0.6202207]
[1750450927544,0.62244111,103510.0,103500.0,0.6534207]
[1750450928148,0.62244111,103510.0,103500.0,0.6202207]
[1750450928647,0.98324111,103510.0,103500.0,0.001]
[1750450928848,1.01624111,103510.0,103500.0,0.1946206]
[1750450929148,0.98324111,103510.0,103500.0,0.1946206]
[1750450929351,0.98324111,103510.0,103500.0,0.2267206]
[1750450929737,0.62244111,103510.0,103500.0,0.2267206]
[1750450931354,0.62244111,103510.0,103500.0,0.0335]
[1750450931545,0.65504111,103510.0,103500.0,0.0335]
[1750450932851,0.76359452,103510.0,103500.0,0.0014]
[1750450933153,0.82132621,103510.0,103500.0,0.0014]
[1750450934043,0.82132621,103510.0,103500.0,0.1946206]
[1750450934353,0.7127728,103510.0,103500.0,0.2276206]
[1750450934554,0.62244111,103510.0,103500.0,0.6204206]
[1750450934954,0.62244111,103510.0,103500.0,0.2596206]
[1750450935150,0.6801728,103510.0,103500.0,0.2596206]
[1750450935346,0.7130728,103510.0,103500.0,0.2596206]
[1750450938257,0.31563369,103510.0,103500.0,0.2596206]
[1750450938452,0.7130728,103510.0,103500.0,0.2596206]
[1750450939161,0.05773169,103510.0,103500.0,0.67419476]
[1750450939453,0.43789064,103520.0,103500.0,0.67419476]
[1750450939454,0.05773169,103520.0,103510.0,0.193202]
[1750450939649,0.90378559,103530.0,103520.0,0.1931834]
[1750450939862,0.93488559,103530.0,103520.0,0.1931834]
[1750450940556,0.83829519,103530.0,103520.0,0.1931834]
[1750450940759,0.40975608,103530.0,103520.0,0.63478697]
[1750450940966,0.80719519,103530.0,103520.0,0.63478697]
[1750450941756,0.40975608,103530.0,103520.0,0.78522697]
[1750450942141,0.41075608,103530.0,103520.0,0.78522697]
[1750450942552,0.80819519,103530.0,103520.0,0.78522697]
[1750450942951,0.83949519,103530.0,103520.0,0.78522697]
[1750450943249,0.44205608,103530.0,103520.0,0.78522697]
[1750450943449,0.83949519,103530.0,103520.0,0.78522697]
[1750450945553,0.83949519,103530.0,103520.0,1.40034697]
[1750450946058,0.83949519,103530.0,103520.0,1.20716357]
[1750450946859,0.83949519,103530.0,103520.0,1.17626357]
[1750450947160,1.5977343,103530.0,103520.0,0.01780357]
[1750450947354,1.64312409,103530.0,103520.0,0.01780357]
[1750450947554,1.24568498,103530.0,103520.0,0.01780357]
[1750450947862,1.24568498,103530.0,103520.0,0.01740357]
[1750450948162,1.24568498,103530.0,103520.0,0.01780357]
[1750450949065,1.24768498,103530.0,103520.0,0.01780357]
[1750450949264,1.25168498,103530.0,103520.0,0.01780357]
[1750450951768,1.25168498,103530.0,103520.0,0.21098687]
[1750450952155,0.71982439,103530.0,103520.0,0.21098687]
[1750450952356,0.35902439,103530.0,103520.0,0.63468687]
[1750450952867,0.41685961,103530.0,103520.0,0.63468687]
[1750450953165,0.81429872,103530.0,103520.0,0.63468687]
[1750450953365,1.1172635,103530.0,103520.0,0.01780357]
[1750450953561,1.1501635,103530.0,103520.0,0.01780357]
[1750450953763,1.1501635,103530.0,103520.0,0.01740357]
[1750450953971,1.1501635,103530.0,103520.0,0.01780357]
[1750450956462,1.22725414,103530.0,103520.0,0.01780357]
[1750450958258,1.33868219,103530.0,103520.0,0.01780357]
[1750450959161,1.7361213,103530.0,103520.0,0.01780357]
[1750450959466,0.1931833,103520.0,103510.0,0.0008]
[1750450959655,0.193202,103510.0,103500.0,0.3220283]
[1750450959853,0.65354111,103510.0,103500.0,0.3220283]
[1750450960055,0.65354111,103510.0,103500.0,0.3544283]
[1750450960469,0.65354111,103510.0,103500.0,0.3061235]
[1750450960659,0.65354111,103510.0,103500.0,0.2415235]
[1750450961062,0.65354111,103510.0,103500.0,0.2731235]
[1750450961464,0.65354111,103510.0,103500.0,0.2735235]
[1750450961868,0.256102,103510.0,103500.0,0.2735235]
[1750450962076,0.223202,103510.0,103500.0,0.6343235]
[1750450962371,0.28107804,103510.0,103500.0,0.6343235]
[1750450962576,0.28107804,103510.0,103500.0,0.6671235]
[1750450963864,0.28107804,103510.0,103500.0,1.06456261]
[1750450964863,0.28107804,103510.0,103500.0,1.03176261]
[1750450965059,0.28107804,103510.0,103500.0,0.6343235]
[1750450966463,0.223202,103510.0,103500.0,0.6343235]
[1750450967177,0.2811102,103510.0,103500.0,0.6343235]
[1750450970875,0.67854931,103510.0,103500.0,0.6343235]
[1750450972082,0.67854931,103510.0,103500.0,0.2735235]
[1750450972777,0.2811102,103510.0,103500.0,0.2735235]
[1750450972973,0.67854931,103510.0,103500.0,0.2735235]
[1750450974573,0.2811102,103510.0,103500.0,0.2735235]
[1750450976682,0.67854931,103510.0,103500.0,0.2735235]
[1750450980176,1.03934931,103510.0,103500.0,0.1932207]
[1750450980379,0.1932207,103500.0,103490.0,0.35151823]
[1750450980574,0.67890504,103500.0,103490.0,0.35231823]
[1750450980774,0.67890504,103500.0,103490.0,0.35151823]
[1750450980981,0.67890504,103500.0,103490.0,0.35191823]
[1750450981181,0.68842221,103500.0,103490.0,0.35191823]
[1750450981577,0.63047698,103500.0,103490.0,0.35191823]
[1750450981779,0.6884245,103500.0,103490.0,0.35191823]
[1750450982483,0.28146812,103500.0,103490.0,0.71271823]
[1750450982785,0.28146812,103500.0,103490.0,1.11015734]
[1750450982983,0.28146812,103500.0,103490.0,1.14335734]
[1750450984076,0.28146812,103500.0,103490.0,1.75803734]
[1750450984575,0.28146812,103500.0,103490.0,1.36059823]
[1750450984971,0.2235206,103500.0,103490.0,1.36059823]
[1750450985182,0.2235206,103500.0,103490.0,0.99979823]
[1750450985387,0.28146153,103500.0,103490.0,0.99979823]
[1750450985986,0.28146153,103500.0,103490.0,0.96655823]
[1750450986187,0.29125379,103500.0,103490.0,0.96655823]
[1750450987088,0.6886929,103500.0,103490.0,0.96655823]
[1750450987384,0.4954723,103500.0,103490.0,1.32735823]
[1750450987687,0.67890064,103500.0,103490.0,1.32735823]
[1750450987890,0.28146153,103500.0,103490.0,1.32735823]
[1750450988487,0.05794093,103500.0,103490.0,1.55340534]
[1750450988688,0.41524755,103520.0,103510.0,0.1932019]
[1750450988988,0.31864835,103520.0,103510.0,0.95144101]
[1750450989290,0.2733902,103520.0,103510.0,0.63307371]
[1750450989687,0.2831253,103520.0,103510.0,0.63307371]
[1750450989881,0.2733902,103520.0,103510.0,0.66517371]
[1750450990086,0.2733902,103520.0,103510.0,0.63307371]
[1750450990284,0.67182931,103520.0,103510.0,0.63307371]
[1750450990884,0.67182931,103520.0,103510.0,0.60157371]
[1750450991285,0.2743902,103520.0,103510.0,0.60157371]
[1750450991486,0.2280832,103520.0,103510.0,0.60157371]
[1750450991685,0.62552231,103520.0,103510.0,0.60157371]
[1750450991993,0.62552231,103520.0,103510.0,0.5844019]
[1750450993386,0.2280832,103520.0,103510.0,0.5844019]
[1750450995199,0.62552231,103520.0,103510.0,0.5844019]
[1750450995496,1.01642231,103520.0,103510.0,0.8076419]
[1750450995693,1.01642231,103520.0,103500.0,1.3334662]
[1750450995694,0.1932019,103510.0,103500.0,1.3334662]
[1750450995889,0.62154101,103510.0,103500.0,1.5266701]
[1750450996290,0.62154101,103510.0,103500.0,0.7619101]
[1750450996595,0.62154101,103510.0,103500.0,1.2653667]
[1750450996897,0.2241019,103510.0,103500.0,1.2653667]
[1750450997098,0.2241019,103510.0,103500.0,1.2973667]
[1750450999199,0.2241019,103510.0,103500.0,1.4473667]
[1750450999993,0.2241019,103510.0,103500.0,1.84480581]
[1750451000489,0.2241019,103510.0,103500.0,1.87800581]
[1750451001503,0.2221019,103510.0,103500.0,1.87800581]
[1750451003001,0.2231019,103510.0,103500.0,1.87800581]
[1750451003301,0.2241019,103510.0,103500.0,1.87800581]
[1750451003500,0.2241019,103510.0,103500.0,1.4805667]
[1750451003702,0.2241019,103510.0,103500.0,1.87800581]
[1750451004099,0.2241019,103510.0,103500.0,1.84480581]
[1750451004295,0.2241019,103510.0,103500.0,1.4473667]
[1750451006799,0.2241019,103510.0,103500.0,1.84480581]
[1750451008810,0.28204639,103510.0,103500.0,1.84480581]
[1750451013007,0.05994449,103510.0,103500.0,2.67370892]
[1750451013212,0.002,103510.0,103500.0,3.43774892]
[1750451013408,0.002,103510.0,103500.0,3.46665886]
[1750451014111,0.001,103510.0,103500.0,3.46765886]
[1750451014614,0.001,103510.0,103500.0,3.46665886]
[1750451014908,0.05794449,103520.0,103510.0,0.1932019]
[1750451015101,0.05794449,103520.0,103510.0,1.27502416]
[1750451016110,0.40986598,103530.0,103520.0,0.1931832]
[1750451016307,0.40986598,103530.0,103520.0,1.59714231]
[1750451016505,0.40986598,103530.0,103520.0,1.74718231]
[1750451016705,0.40986598,103530.0,103520.0,1.3497432]
[1750451016908,0.47116598,103530.0,103520.0,1.3497432]
[1750451017103,0.48102032,103530.0,103520.0,1.3497432]
[1750451017610,0.48202032,103530.0,103520.0,1.3497432]
[1750451018114,0.48302032,103530.0,103520.0,1.3497432]
[1750451019509,0.32190628,103530.0,103520.0,1.3497432]
[1750451019709,0.09214449,103530.0,103520.0,1.3497432]
[1750451020111,0.09214449,103530.0,103520.0,1.74718231]
[1750451020510,0.28530909,103530.0,103520.0,1.74718231]
[1750451020714,0.09214449,103530.0,103520.0,1.74718231]
[1750451020911,0.28530909,103530.0,103520.0,1.74718231]
[1750451021117,0.09214449,103530.0,103520.0,1.74718231]
[1750451022014,0.28530909,103530.0,103520.0,1.74718231]
[1750451022401,0.09214449,103530.0,103520.0,1.74718231]
[1750451022815,0.16854109,103530.0,103520.0,1.74718231]
[1750451028816,0.36170569,103530.0,103520.0,1.74718231]
[1750451029421,0.36170569,103530.0,103520.0,1.3497432]
[1750451031425,0.16854109,103530.0,103520.0,1.74718231]
[1750451034029,0.16854109,103530.0,103520.0,1.77748231]
[1750451035338,0.13634109,103530.0,103520.0,1.77748231]
[1750451035633,0.13634109,103530.0,103520.0,1.01352231]
[1750451035832,0.32950569,103530.0,103520.0,1.3487032]
[1750451036137,0.36150569,103530.0,103520.0,0.5857832]
[1750451036435,0.39450569,103530.0,103520.0,1.3491032]
[1750451037036,0.20134109,103530.0,103520.0,1.3491032]
[1750451037227,0.39450569,103530.0,103520.0,1.3487032]
[1750451037427,0.39450569,103530.0,103520.0,1.3491032]
[1750451037634,0.3365612,103530.0,103520.0,1.3491032]
[1750451038636,0.3365612,103530.0,103520.0,0.5861832]
[1750451038833,0.3365612,103530.0,103520.0,1.3490232]
[1750451040941,0.3365612,103530.0,103520.0,1.74646231]
[1750451041133,0.39450569,103530.0,103520.0,1.74646231]
[1750451041648,0.39450569,103530.0,103520.0,1.3490232]
[1750451041830,0.42720569,103530.0,103520.0,1.3490232]
[1750451044840,0.42720569,103530.0,103520.0,1.3690232]
[1750451045041,0.8246448,103530.0,103520.0,0.5543832]
[1750451045344,0.1931833,103520.0,103510.0,1.32898385]
[1750451045538,0.31412411,103520.0,103510.0,1.32978385]
[1750451045838,0.31412411,103520.0,103510.0,1.72642296]
[1750451045839,0.08944081,103520.0,103510.0,1.72642296]
[1750451046043,0.08944081,103520.0,103510.0,1.79072296]
[1750451046243,0.0315,103520.0,103510.0,1.79072296]
[1750451046647,0.08944081,103520.0,103510.0,1.79172296]
[1750451047144,0.08944081,103520.0,103510.0,1.79272296]
[1750451048445,0.28262411,103520.0,103510.0,1.14730296]
[1750451048743,0.08944081,103520.0,103510.0,1.90978296]
[1750451052741,0.28262411,103520.0,103510.0,1.14730296]
[1750451052940,0.28262411,103520.0,103510.0,1.90962296]
[1750451054249,0.08944081,103520.0,103510.0,1.90962296]
[1750451055649,0.05794081,103520.0,103510.0,1.90962296]
[1750451055947,0.05794081,103520.0,103510.0,1.17840296]
[1750451056142,0.05794081,103520.0,103510.0,1.94064296]
[1750451056346,0.09074081,103520.0,103510.0,1.94064296]
[1750451057649,0.2259833,103520.0,103510.0,1.90954296]
[1750451057959,0.0328,103520.0,103510.0,1.90954296]
[1750451058552,0.0328,103520.0,103510.0,1.90890296]
[1750451061352,0.68136322,103520.0,103510.0,0.62186675]
[1750451061548,0.71166322,103520.0,103510.0,0.26106675]
[1750451061740,1.07246322,103520.0,103510.0,0.26066675]
[1750451061939,1.07246322,103520.0,103510.0,0.26106675]
[1750451062340,0.12104081,103520.0,103510.0,1.01930586]
[1750451062546,0.09074081,103520.0,103510.0,1.01830586]
[1750451062749,0.09074081,103520.0,103510.0,1.08220586]
[1750451063056,0.0338,103520.0,103510.0,1.11298526]
[1750451063755,0.0348,103520.0,103510.0,1.11298526]
[1750451064056,0.0338,103520.0,103510.0,1.11298526]
[1750451064255,0.0328,103520.0,103510.0,1.11498526]
[1750451064449,0.0328,103520.0,103510.0,1.13498526]
[1750451064850,0.0328,103520.0,103510.0,1.13502139]
[1750451067458,0.2259833,103520.0,103510.0,1.13502139]
[1750451067651,0.28392411,103520.0,103510.0,0.73706675]
[1750451068255,0.28392411,103520.0,103510.0,0.68576675]
[1750451068556,0.68187875,103520.0,103510.0,0.65486675]
[1750451068745,0.71407875,103520.0,103510.0,1.38282675]
[1750451069153,0.71407875,103520.0,103510.0,1.38322675]
[1750451069855,0.71607875,103520.0,103510.0,1.38122675]
[1750451070159,0.31812411,103520.0,103510.0,1.38122675]